Cogmind - Beta 11.1 @@@ ROGUE MODE // 2022.05.03 @ 21:23:48 Player: Decinym Result: Destroyed by as-38654 with Assembled Shotgun Performance ------------- Evolutions (3) 1500 Regions Visited (13) 2600 Robots Destroyed (137) 685 Value Destroyed (3975) 3975 Prototype IDs (45) 900 Alien Tech Used (0) 0 Bonus (2895) 2895 TOTAL SCORE: 12555 Bonus ------- High Alert Combat Kills 68 Follower Combat Kills 265 Aligned with FarCom 300 Met Imprinter 300 Destroyed Z-Imprinter 1000 Triggered Deep Caves Wall 500 Exposed GOLEM Chamber 500 Friendly Fire -38 Cogmind --------- Core Integrity 0/700 Matter 122/300 Energy 170/170 System Corruption 0% Temperature Cool (0) Movement Walking (330) Ox3 Location -7/Deep Caves Parts ------- > --- POWER (1) -------- Light Neutrino Core > --- PROPULSION (4) --- Carbon-fiber Leg Carbon-fiber Leg > --- UTILITY (6) ------ Experimental Heat Sink Huge Storage Unit Improved Armor Integrity Analyzer Advanced Weapon Cycler Improved System Guard AS-neutralizer No. 17b > --- WEAPON (2) ------- Power Maul > --- INVENTORY (25) --- Experimental Heat Sink High-capacity Matter Pod (0) Zionite Metafield Generator Experimental Sensor Array Experimental Targeting Computer Zionite Weapon Casing GAL Module Peak State ------------ > --- POWER ------------ Reinforced Fission Core > --- PROPULSION ------- Advanced Myomer Leg Advanced Myomer Leg Zionite Glidesys II Zionite Glidesys II > --- UTILITY ---------- Experimental Heat Sink Huge Storage Unit Core Analyzer Armor Integrity Analyzer Zionite Light Carapace Zionite Light Carapace > --- WEAPON ----------- Zionite Laser-M Zionite Laser-M > --- INVENTORY -------- Light Neutrino Core Experimental Heat Sink Experimental Heat Sink High-capacity Matter Pod Zionite Metafield Generator Experimental Sensor Array Experimental Targeting Computer Improved Armor Integrity Analyzer Advanced Weapon Cycler Zionite Weapon Casing Improved System Guard AS-neutralizer No. 17b Shock Rifle Shock Rifle Zionite Laser-S Advanced Beam Cannon Rocket Launcher Heavy Rocket Launcher Power Maul GAL Module [Rating: 93] Favorites ----------- Power Improved Deuterium Engine Engine Improved Deuterium Engine Power Core Reinforced Fission Core Propulsion Armored Treads Treads Armored Treads Leg Advanced Myomer Leg Hover Unit Zionite Glidesys II Utility Improved Targeting Computer Device Experimental Heat Sink Storage Huge Storage Unit Processor Improved Targeting Computer Hackware Hacking Suite Protection Light Armor Plating Weapon Heavy Assault Rifle Energy Gun Advanced Beam Rifle Energy Cannon Heavy Ion Cannon Ballistic Gun Heavy Assault Rifle Launcher Rocket Launcher Special Weapon Plasma Cutter Impact Weapon Power Maul Build | -11 -10 -10 -9 -9 -9 -8 -8 -8 -7 -7 -7 -7 -7 ------- Run | Scr Mat Min Mat Min Exi Min Mat Sto Fac Low Low Zio Dee Slots Evolved 6 | . . . 2 . . . 2 . 2 . . . . Power . | . . . . . . . . . . . . . . Propulsion 2 | . . . . . . . 1 . 1 . . . . Utility 4 | . . . 2 . . . 1 . 1 . . . . Weapon . | . . . . . . . . . . . . . . Parts Attached 175 | . 7 8 26 5 17 3 17 25 6 10 7 5 39 Power 15 | . . 1 2 . 3 . 2 3 1 1 . . 2 Engine 10 | . . . 2 . 2 . 1 3 1 1 . . . Core 5 | . . 1 . . 1 . 1 . . . . . 2 Reactor . | . . . . . . . . . . . . . . Propulsion 24 | . 2 3 3 . . . 3 3 1 1 . . 8 Treads 16 | . . 3 3 . . . 3 3 1 1 . . 2 Leg 6 | . 2 . . . . . . . . . . . 4 Wheel . | . . . . . . . . . . . . . . Hover 2 | . . . . . . . . . . . . . 2 Flight . | . . . . . . . . . . . . . . Utility 57 | . 1 1 10 3 8 1 3 8 3 4 3 . 12 Device 17 | . 1 . 2 1 3 . . 2 . 3 1 . 4 Storage 4 | . . . 2 . 1 . . 1 . . . . . Processor 7 | . . . . . 1 . 1 . . . 2 . 3 Hackware 2 | . . . . . . . . 1 1 . . . . Protection 27 | . . 1 6 2 3 1 2 4 2 1 . . 5 Artifact . | . . . . . . . . . . . . . . Weapon 79 | . 4 3 11 2 6 2 9 11 1 4 4 5 17 Energy Gun 23 | . 1 . . . . . 2 7 . 2 2 1 8 Energy Cannon 6 | . . . . . . . . 1 . . . 2 3 Ballistic Gun 31 | . 3 2 7 1 5 1 5 2 . 1 . 1 3 Ballistic Cannon . | . . . . . . . . . . . . . . Launcher 16 | . . 1 4 1 . 1 2 1 1 1 2 . 2 Special Weapon 1 | . . . . . 1 . . . . . . . . Impact Weapon 2 | . . . . . . . . . . . . 1 1 Slashing Weapon . | . . . . . . . . . . . . . . Piercing Weapon . | . . . . . . . . . . . . . . Special Melee Weapon . | . . . . . . . . . . . . . . Unidentified Prototypes 20 | . . . 1 1 5 . 2 5 . . . . 6 Parts Lost 46 | . . . . . 3 1 2 4 . 4 . . 32 Power 4 | . . . . . . . . 1 . 1 . . 2 Propulsion 12 | . . . . . . . . 1 . 1 . . 10 Utility 16 | . . . . . 2 1 2 1 . 1 . . 9 Weapon 14 | . . . . . 1 . . 1 . 1 . . 11 Highest Loss Streak 15 | . . . . . 2 1 1 2 . 3 . . 15 To Critical Strikes . | . . . . . . . . . . . . . . Average Slot Usage (%) 98 | . 93 100 99 100 97 99 93 98 100 99 100 96 92 Engine 8 | . 14 12 6 11 11 11 6 8 7 7 7 7 2 Treads 24 | . . 23 21 22 22 22 27 26 30 29 30 30 12 Leg 1 | . 28 4 . . . . . . . . . . 7 Device 9 | . 8 11 4 11 8 . . 7 7 13 15 15 11 Storage 9 | . 14 14 11 11 11 11 9 9 7 7 7 7 7 Processor 7 | . . . . . . 11 13 9 7 7 10 15 15 Hackware 1 | . . . . . . . . 7 7 7 4 . . Protection 13 | . . 2 27 22 21 20 17 10 14 7 7 7 8 Energy Gun 4 | . 7 . . . . . 8 14 13 13 7 1 6 Energy Cannon 1 | . . . . . . . . 2 . . . 4 4 Ballistic Gun 11 | . 19 28 21 21 21 21 9 1 . . 7 5 3 Naked Turns . | . . . . . . . . . . . . . . Heaviest Build 124 | 11 13 17 51 46 67 67 67 105 102 117 117 123 124 Greatest Support 82 | 20 20 40 44 44 44 44 66 62 82 80 80 80 80 Greatest Overweight (x) 28 | . . . 1 1 1 1 1 2 1 1 1 1 28 Average Overweight (x) . | . . . . . 1 1 . . 1 1 1 1 1 Largest Inventory Capacity 25 | 8 8 8 15 15 20 20 20 25 25 25 25 25 25 Average Capacity 20 | 8 8 8 12 15 16 20 20 23 25 25 25 25 25 Most Carried 25 | 6 8 8 15 15 20 20 20 25 25 25 25 25 25 Average Carried 19 | 6 6 7 10 15 14 19 19 23 24 24 24 24 20 Final Capacity 25 | 8 8 8 15 15 20 20 20 25 25 25 25 25 25 Final Carried 25 | 6 8 8 15 15 20 20 20 25 25 25 24 25 7 Class Distribution -------------------- 71% | Mutant 13% | Derelict-Mutant 10% | Scavenger-Mutant 4% | Commander-Mutant Dominant Class ---------------- Mutant | -10/Materials Mutant | -10/Mines Mutant | -9/Materials Mutant | -9/Mines Mutant | -9/Exiles Mutant | -8/Mines Mutant | -8/Materials Mutant | -8/Storage Commander-Mutant | -7/Factory Mutant | -7/Lower Caves Mutant | -7/Lower Caves Derelict-Mutant | -7/Zion Scavenger-Mutant | -7/Deep Caves Resources | -11 -10 -10 -9 -9 -9 -8 -8 -8 -7 -7 -7 -7 -7 ----------- Run | Scr Mat Min Mat Min Exi Min Mat Sto Fac Low Low Zio Dee Matter Collected 3884 | 200 148 144 425 544 287 125 256 447 58 531 108 74 537 Remotely . | . . . . . . . . . . . . . . Salvage Created 5359 | . 263 115 661 230 181 272 585 1652 . 581 219 . 600 Parts 304 | . 9 13 59 11 13 17 38 83 . 16 15 . 30 Haulers Intercepted 13 | . . . 4 . . . 3 6 . . . . . Recyclers Shooed 6 | . 1 . 1 . . . 3 1 . . . . . Parts Field Recycled . | . . . . . . . . . . . . . . Retrieved Matter . | . . . . . . . . . . . . . . Parts Self-Destructed 29 | . . . . . . . . . . 12 14 3 . Prevented . | . . . . . . . . . . . . . . Kills | -11 -10 -10 -9 -9 -9 -8 -8 -8 -7 -7 -7 -7 -7 ------- Run | Scr Mat Min Mat Min Exi Min Mat Sto Fac Low Low Zio Dee Combat Hostiles Destroyed 106 | . 4 5 16 6 2 6 11 23 . 16 7 . 10 Guns 61 | . 4 2 7 4 2 4 5 18 . 10 1 . 4 Cannons 3 | . . . . . . . . 2 . . . . 1 AOE 38 | . . 3 9 2 . 2 6 1 . 5 6 . 4 Classes Destroyed 18 | . 2 5 3 . 2 2 . 1 . 1 . . 2 Worker 7 | . . . 2 . . . 3 2 . . . . . Builder 4 | . . 1 . . . . 3 . . . . . . Tunneler 2 | . . 1 . . . 1 . . . . . . . Hauler 13 | . . . 4 . . . 3 6 . . . . . Recycler 7 | . 1 . . 1 . . 1 4 . . . . . Operator 1 | . . . . . . . . 1 . . . . . Watcher 1 | . . . 1 . . . . . . . . . . Swarmer 29 | . . 3 9 3 . . 3 3 . 5 3 . . Grunt 34 | . 4 . 2 3 . 4 3 8 . 6 4 . . Brawler 3 | . . . . . . 1 1 . . 1 . . . Duelist 3 | . . . . . . 1 . 1 . 1 . . . Sentry 23 | . . 1 5 . . . 4 11 . 2 . . . Demolisher 1 | . . 1 . . . . . . . . . . . Programmer 1 | . . . . . . . . . . 1 . . . Zionite 3 | . . . . . 3 . . . . . . . . Z-Technician 4 | . . . . . . . . . . . . . 4 Z-Light 2 | . . . . . . . . . . . . . 2 Assembled 3 | . . . . . 1 . . . . . . . 2 Golem 5 | . . . . . . . . . . . . . 5 Best Kill Streak 8 | . 3 4 6 3 2 3 8 5 . 5 4 . 4 Combat Bots Only 5 | . 2 3 4 3 1 3 5 3 . 5 4 . 4 Max Kills in Single Turn 4 | . 1 3 3 2 1 2 4 2 . 2 3 . 2 Gunslinging . | . . . . . . . . . . . . . . Exploded 3 | . . 3 2 2 . 2 2 1 . 2 3 . 2 Melee . | . . . . . . . . . . . . . . Uniques/NPCs Destroyed 5 | . . . . . 4 . . . . . . . 1 EX-DEC (-9/Exiles) EX-HEX (-9/Exiles) EX-BIN (-9/Exiles) 8R-AWN (-9/Exiles) Z-Imprinter (-7/Deep Caves) Combat | -11 -10 -10 -9 -9 -9 -8 -8 -8 -7 -7 -7 -7 -7 -------- Run | Scr Mat Min Mat Min Exi Min Mat Sto Fac Low Low Zio Dee Damage Taken 9006 | . 290 94 426 145 378 215 485 1751 57 1094 96 . 3975 Core 1045 | . 53 . 28 . . 17 42 204 . 80 8 . 613 Absorbed by Shields 381 | . . . 16 55 145 16 . . . 48 38 . 63 Regen/Repaired (Parts) 424 | . . . 187 . . . . 237 . . . . . Core Remaining (%) 80 | 100 . 78 . . . 88 . 55 . . . . . Volleys Fired 405 | . 19 10 39 16 30 16 40 90 11 40 4 1 89 Largest 2 | . 2 2 2 2 2 2 2 2 2 2 2 1 2 Hottest 146 | . 60 40 46 46 46 46 84 129 122 122 86 61 146 Shots Fired 724 | . 38 19 69 31 58 30 72 174 13 72 6 1 141 Gun 596 | . 38 18 60 30 39 28 64 160 4 63 4 1 87 Cannon 49 | . . . . . . . . 13 . . . . 36 Launcher 60 | . . 1 9 1 . 2 8 1 9 9 2 . 18 Special 19 | . . . . . 19 . . . . . . . . Kinetic 291 | . 26 18 60 30 39 28 35 18 . . 2 . 35 Thermal 362 | . 12 . . . 19 . 29 155 4 63 2 1 77 Explosive 60 | . . 1 9 1 . 2 8 1 9 9 2 . 18 Electromagnetic 11 | . . . . . . . . . . . . . 11 Robot Hit Streak 37 | . 7 8 13 7 11 7 12 37 3 17 2 . 8 Robot Miss Streak 6 | . 2 2 1 2 4 2 3 2 1 1 1 . 6 Penetration Max . | . . . . . . . . . . . . . . Secondary Targets 12 | . 1 . . 2 . . . 4 . 2 . . 3 Max Gunslinging Chain 1 | . 1 . . 1 . . . 1 . 1 . . 1 Shots Hit Robots 508 | . 27 11 50 20 40 22 51 144 3 59 3 . 78 Core Hits 325 | . 12 10 32 9 17 13 38 50 . 32 10 . 102 Critical Kills 1 | . . . . . . . . . . . . . 1 Critical Parts Destroyed . | . . . . . . . . . . . . . . Critical Strikes 27 | . . . . . 2 . 4 14 . 3 . . 4 Burn 21 | . . . . . . . 4 14 . 3 . . . Meltdown 1 | . . . . . . . . . . . . . 1 Destroy 3 | . . . . . . . . . . . . . 3 Sever 2 | . . . . . 2 . . . . . . . . Melee Attacks 10 | . . . . . . . . . . . . 9 1 Impact 10 | . . . . . . . . . . . . 9 1 Slashing . | . . . . . . . . . . . . . . Piercing . | . . . . . . . . . . . . . . Sneak Attacks 1 | . . . . . . . . . . . . . 1 Combat Hostiles . | . . . . . . . . . . . . . . Follow-up Attacks . | . . . . . . . . . . . . . . Damage Inflicted 13752 | . 348 210 1288 354 528 568 1826 2586 63 1470 447 . 4064 Guns 7556 | . 348 126 671 297 361 311 803 2378 63 1047 38 . 1113 Cannons 550 | . . . . . . . . 142 . . . . 408 Explosions 5367 | . . 84 616 57 . 257 1023 45 . 423 409 . 2453 Melee 90 | . . . . . . . . . . . . . 90 Ramming 22 | . . . 1 . . . . 21 . . . . . Kinetic 2939 | . 244 126 671 297 361 311 363 204 . . 18 . 344 Thermal 5290 | . 104 . . . 167 . 440 2316 63 1047 20 . 1133 Explosive 5292 | . . 84 616 57 . 257 1023 45 . 423 409 . 2378 Electromagnetic 119 | . . . . . . . . . . . . . 119 Impact 90 | . . . . . . . . . . . . . 90 Slashing . | . . . . . . . . . . . . . . Piercing . | . . . . . . . . . . . . . . Highest Corruption 6 | . . . . . . . . 2 1 6 4 4 . Average Corruption 2 | . . . . . . . . 1 1 3 4 4 . Corruption Purged 3 | . . . . . . . . . . 3 . . . Corruption Blocked . | . . . . . . . . . . . . . . Effects 49 | . . . . . . . . 9 3 20 14 3 . Message Errors 9 | . . . . . . . . 1 2 4 1 1 . Matter Fused 15 | . . . . . . . . 4 1 6 2 2 . Heat Flow Errors 7 | . . . . . . . . 1 . 3 3 . . Energy Discharges 7 | . . . . . . . . 2 . 2 3 . . Data Loss (minor) 4 | . . . . . . . . . . 2 2 . . Data Loss (major) 2 | . . . . . . . . . . 1 1 . . Misfires 1 | . . . . . . . . . . 1 . . . Alerts 4 | . . . . . . . . 1 . 1 2 . . Overload Shots . | . . . . . . . . . . . . . . Overflow Damage 119 | . . . 18 . . . 41 . . 1 . . 59 Projectiles 13 | . . . . . . . . . . . . . 13 Explosions 106 | . . . 18 . . . 41 . . 1 . . 46 Melee . | . . . . . . . . . . . . . . Knockbacks 1 | . . . 1 . . . . . . . . . . Impact 1 | . . . 1 . . . . . . . . . . Kinetic . | . . . . . . . . . . . . . . Secondary . | . . . . . . . . . . . . . . Self-Inflicted Damage 135 | . . . 5 . . . 25 . . 68 9 . 28 Shots 6 | . . . 1 . . . 1 . . 2 1 . 1 Rammed 1 | . . . 1 . . . . . . . . . . Targets Rammed 3 | . . . 1 . . . . 2 . . . . . Kicked . | . . . . . . . . . . . . . . Crushed 2 | . . . . . . . . 2 . . . . . Highest Temperature 288 | . 117 6 39 6 . 22 219 237 19 227 220 . 288 Average Temperature 53 | . 66 4 15 4 . 10 83 46 11 31 90 . 66 Received Heat Transfer 2712 | . 168 72 150 56 . 105 198 711 27 309 30 . 886 Siege Activations . | . . . . . . . . . . . . . . Robots Corrupted . | . . . . . . . . . . . . . . Combat Hostiles . | . . . . . . . . . . . . . . Parts Fried . | . . . . . . . . . . . . . . Impact Corruptions . | . . . . . . . . . . . . . . Robots Melted 4 | . . . . . . . . 2 . 1 . . 1 Combat Hostiles 4 | . . . . . . . . 2 . 1 . . 1 Parts Melted 33 | . . . . . . . 1 20 . 12 . . . Heat Transferred 11082 | . 225 . . . 135 . 1110 5920 111 2257 37 . 1287 Parts Sabotaged . | . . . . . . . . . . . . . . Parts Stolen . | . . . . . . . . . . . . . . Parts Stripped . | . . . . . . . . . . . . . . Power Chain Reactions 1 | . . . . . . . . . . . . . 1 Missiles Intercepted . | . . . . . . . . . . . . . . Alert | -11 -10 -10 -9 -9 -9 -8 -8 -8 -7 -7 -7 -7 -7 ------- Run | Scr Mat Min Mat Min Exi Min Mat Sto Fac Low Low Zio Dee Peak Influence 465 | . 135 102 456 188 . 79 292 465 332 . . . . Initial 133 | . . 52 16 133 . . 7 104 106 . . . . Average 149 | . 67 32 226 43 . 37 83 327 163 . . . . Maximum Alert Level 2 | . . . 2 . . . 1 2 1 . . . . Low Security (%) 64 | 100 100 100 38 100 . 100 93 2 71 . . . . Level 1 30 | . . . 56 . . . 6 79 28 . . . . Level 2 5 | . . . 5 . . . . 17 . . . . . Level 3 . | . . . . . . . . . . . . . . Level 4 . | . . . . . . . . . . . . . . Level 5 . | . . . . . . . . . . . . . . High Security . | . . . . . . . . . . . . . . Max Security . | . . . . . . . . . . . . . . Squads Dispatched 11 | . 1 . 2 . . . 1 2 5 . . . . Investigation 1 | . 1 . . . . . . . . . . . . Extermination 1 | . . . . . . . . . 1 . . . . Reinforcement 6 | . . . 2 . . . 1 2 1 . . . . Assault . | . . . . . . . . . . . . . . Garrison 3 | . . . . . . . . . 3 . . . . Intercept . | . . . . . . . . . . . . . . Searches Triggered . | . . . . . . . . . . . . . . Construction Impeded 1 | . . . . . . . 1 . . . . . . Haulers Reinforced . | . . . . . . . . . . . . . . Active Scanning Responses . | . . . . . . . . . . . . . . Cargo Convoy Interrupts . | . . . . . . . . . . . . . . Stealth | -11 -10 -10 -9 -9 -9 -8 -8 -8 -7 -7 -7 -7 -7 --------- Run | Scr Mat Min Mat Min Exi Min Mat Sto Fac Low Low Zio Dee Distress Signals 7 | . 1 1 3 . . . 1 1 . . . . . Communications Jammed . | . . . . . . . . . . . . . . Distress Signals . | . . . . . . . . . . . . . . Times Spotted 176 | . 6 6 31 6 10 7 13 31 7 16 7 . 36 Peak Tracking Total 35 | . 3 3 6 3 9 3 6 4 2 5 4 . 35 Tactical Retreats 3 | . 1 . . . 1 1 . . . . . . . Traps | -11 -10 -10 -9 -9 -9 -8 -8 -8 -7 -7 -7 -7 -7 ------- Run | Scr Mat Min Mat Min Exi Min Mat Sto Fac Low Low Zio Dee Traps Triggered 7 | . 1 . 1 . . . 1 4 . . . . . Indirectly . | . . . . . . . . . . . . . . Trap Hack Attempts . | . . . . . . . . . . . . . . Triggered . | . . . . . . . . . . . . . . Disarmed . | . . . . . . . . . . . . . . Reprogrammed . | . . . . . . . . . . . . . . Reused . | . . . . . . . . . . . . . . Traps Extracted . | . . . . . . . . . . . . . . Installed 2 | . . . . . 2 . . . . . . . . Triggered . | . . . . . . . . . . . . . . Most Traps Carried 5 | . . 5 2 2 2 . . . . . . . . Exploded 3 | . . . . . 3 . . . . . . . . Machines | -11 -10 -10 -9 -9 -9 -8 -8 -8 -7 -7 -7 -7 -7 ---------- Run | Scr Mat Min Mat Min Exi Min Mat Sto Fac Low Low Zio Dee Machines Disabled 12 | . . . 4 . 3 . 1 1 . 1 . . 2 Max in Single Turn 1 | . . . 1 . 1 . 1 1 . 1 . . 1 Machines Sabotaged . | . . . . . . . . . . . . . . Garrisons Compromised . | . . . . . . . . . . . . . . Overloaded Fab Kills . | . . . . . . . . . . . . . . Hacking | -11 -10 -10 -9 -9 -9 -8 -8 -8 -7 -7 -7 -7 -7 --------- Run | Scr Mat Min Mat Min Exi Min Mat Sto Fac Low Low Zio Dee Machines Accessed 21 | . 1 . 6 . 2 1 1 9 1 . . . . Terminals 15 | . 1 . 4 . . 1 1 7 1 . . . . Fabricators . | . . . . . . . . . . . . . . Repair Stations 4 | . . . 2 . . . . 2 . . . . . Recycling Units . | . . . . . . . . . . . . . . Scanalyzers . | . . . . . . . . . . . . . . Garrison Access . | . . . . . . . . . . . . . . Total Hacks 44 | . 2 . 13 . 2 2 3 20 2 . . . . Successful 28 | . . . 6 . 2 1 2 15 2 . . . . Failed 16 | . 2 . 7 . . 1 1 5 . . . . . Catastrophic 4 | . . . 3 . . . . 1 . . . . . Database Lockouts . | . . . . . . . . . . . . . . Manual 21 | . . . 6 . 1 1 3 9 1 . . . . Terminals 29 | . 2 . 6 . . 2 3 14 2 . . . . Fabricators . | . . . . . . . . . . . . . . Repair Stations 13 | . . . 7 . . . . 6 . . . . . Recycling Units . | . . . . . . . . . . . . . . Scanalyzers . | . . . . . . . . . . . . . . Garrison Access . | . . . . . . . . . . . . . . Terminal Hacks 11 | . . . . . 2 1 1 6 1 . . . . Record 2 | . . . . . 1 1 . . . . . . . Part Schematic 1 | . . . . . . . . 1 . . . . . Prototype ID Bank 1 | . . . . . . . . 1 . . . . . Open Door 2 | . . . . . . . . 2 . . . . . Branch Access Points 2 | . . . . . . . 1 . 1 . . . . Alert Level 1 | . . . . . . . . 1 . . . . . Unreport Threat 1 | . . . . . . . . 1 . . . . . EX-Prototype ID Bank 1 | . . . . . 1 . . . . . . . . Fabricator Hacks . | . . . . . . . . . . . . . . Repair Station Hacks 11 | . . . 5 . . . . 6 . . . . . Scan Component 6 | . . . 3 . . . . 3 . . . . . Repair 5 | . . . 2 . . . . 3 . . . . . Recycling Unit Hacks . | . . . . . . . . . . . . . . Scanalyzer . | . . . . . . . . . . . . . . Garrison Access Hacks . | . . . . . . . . . . . . . . Unauthorized Hacks 6 | . . . 1 . . . 1 3 1 . . . . Terminals 6 | . . . 1 . . . 1 3 1 . . . . Assimilate 1 | . . . 1 . . . . . . . . . . Botnet 5 | . . . . . . . 1 3 1 . . . . Fabricators . | . . . . . . . . . . . . . . Repair Stations . | . . . . . . . . . . . . . . Recycling Units . | . . . . . . . . . . . . . . Scanalyzers . | . . . . . . . . . . . . . . Garrison Access . | . . . . . . . . . . . . . . Data Cores Recovered . | . . . . . . . . . . . . . . Used . | . . . . . . . . . . . . . . Hacking Detections 17 | . 1 . 6 . . 1 1 7 1 . . . . Full Trace Events 1 | . . . 1 . . . . . . . . . . Feedback Events . | . . . . . . . . . . . . . . Feedback Blocked . | . . . . . . . . . . . . . . Robot Schematics Acquired 4 | . . . . . . . . . . . . 4 . Robots Built . | . . . . . . . . . . . . . . Authchips . | . . . . . . . . . . . . . . Time . | . . . . . . . . . . . . . . Total Robot Build Rating . | . . . . . . . . . . . . . . Part Schematics Acquired 14 | . . . . . . . . 1 . . . 13 . Parts Built . | . . . . . . . . . . . . . . Authchips . | . . . . . . . . . . . . . . Time . | . . . . . . . . . . . . . . Total Part Build Rating . | . . . . . . . . . . . . . . Parts Repaired 5 | . . . 2 . . . . 3 . . . . . Time 303 | . . . 64 . . . . 239 . . . . . Parts Recycled . | . . . . . . . . . . . . . . Recycled Matter . | . . . . . . . . . . . . . . Retrieved Matter . | . . . . . . . . . . . . . . Retrieved Components . | . . . . . . . . . . . . . . Parts Scanalyzed . | . . . . . . . . . . . . . . Part Schematics Acquired . | . . . . . . . . . . . . . . Parts Damaged . | . . . . . . . . . . . . . . Bothacking | -11 -10 -10 -9 -9 -9 -8 -8 -8 -7 -7 -7 -7 -7 ------------ Run | Scr Mat Min Mat Min Exi Min Mat Sto Fac Low Low Zio Dee Used RIF Installer . | . . . . . . . . . . . . . . Robots Hacked . | . . . . . . . . . . . . . . Non-combat . | . . . . . . . . . . . . . . Combat . | . . . . . . . . . . . . . . Robot Hacks Applied . | . . . . . . . . . . . . . . Relay Couplers Released . | . . . . . . . . . . . . . . Fabnet Peak Effective % . | . . . . . . . . . . . . . . Robots Rewired 2 | . . . . . . . . . . 2 . . . Allies Hacked . | . . . . . . . . . . . . . . Hacks Repelled . | . . . . . . . . . . . . . . Allies | -11 -10 -10 -9 -9 -9 -8 -8 -8 -7 -7 -7 -7 -7 -------- Run | Scr Mat Min Mat Min Exi Min Mat Sto Fac Low Low Zio Dee Total Allies 14 | . . . 1 1 . . . 10 . 2 . . . Largest Group 10 | . . . 1 1 1 . . 10 10 2 . . . Highest-Rated Group 173 | . . . 10 31 31 . . 173 173 48 . . . Highest-Rated Ally 32 | . . . 10 31 31 . . 29 29 32 . . . Total Orders 1 | . . . . . . . . . 1 . . . . STAY 1 | . . . . . . . . . 1 . . . . Ally Attacks 90 | . . . . . 44 . . . 38 8 . . . Total Damage 2894 | . . . . . 2123 . . . 513 258 . . . Kills 21 | . . . . . 12 . . . 8 1 . . . Allies Corrupted . | . . . . . . . . . . . . . . Allies Melted . | . . . . . . . . . . . . . . Turrets Deployed 3 | . . . . . 3 . . . . . . . . Intel | -11 -10 -10 -9 -9 -9 -8 -8 -8 -7 -7 -7 -7 -7 ------- Run | Scr Mat Min Mat Min Exi Min Mat Sto Fac Low Low Zio Dee Robot Analysis Total . | . . . . . . . . . . . . . . Derelict Logs Recovered 8 | . . 1 . 2 . . . . . 3 1 1 . Drone Launches . | . . . . . . . . . . . . . . Drone Recoveries . | . . . . . . . . . . . . . . Exploration | -11 -10 -10 -9 -9 -9 -8 -8 -8 -7 -7 -7 -7 -7 ------------- Run | Scr Mat Min Mat Min Exi Min Mat Sto Fac Low Low Zio Dee Turns Passed 17526 | 4 241 1152 1222 1474 2453 1276 491 2146 791 1255 688 2904 1429 Spaces Moved 7161 | 4 139 715 515 619 987 545 174 752 309 455 273 1167 507 Core 2 | . . . . . . . . . . . . . 2 Treads 6587 | . . 578 515 619 987 545 174 752 309 455 273 1167 213 Legs 572 | 4 139 137 . . . . . . . . . . 292 Wheels . | . . . . . . . . . . . . . . Hover . | . . . . . . . . . . . . . . Flight . | . . . . . . . . . . . . . . Fastest Speed 120 | 120 120 120 145 145 225 225 153 161 241 245 245 245 190 Average Speed 218 | 120 120 152 188 224 225 225 199 221 241 245 245 245 225 Slowest Speed 1450 | 120 120 160 225 225 225 225 241 317 241 246 245 245 1450 Overloaded Moves . | . . . . . . . . . . . . . . Propulsion Burnouts . | . . . . . . . . . . . . . . Robots Hopped 1 | . . . . . 1 . . . . . . . . Cave-ins Triggered . | . . . . . . . . . . . . . . Exploration Rate (%) 61 | 2 32 99 56 99 90 99 26 96 8 58 40 88 67 Regions Visited 13 Branch Regions 9 Pre-discovered Areas 9 | . . 1 . 2 1 . . . . 1 1 3 . Known Exits Taken 4 | . . . . . . . 1 . 1 1 1 . . Unknown Exits Taken 9 | 1 1 1 1 1 1 1 . 1 . . . 1 . Scrap Searched 13 | . . 3 . 1 . 1 . . . 3 2 3 . Spaces Dug 93 | . . . . . . . . . 90 . . 3 . Terrain Destroyed 344 | . . 9 54 . . 14 71 12 100 50 24 3 7 Melee 3 | . . . . . . . . . . . . 3 . Projectile 4 | . . . . . . . . . . . . . 4 AOE 336 | . . 9 54 . . 14 71 12 100 50 24 . 2 Terrain Rammed . | . . . . . . . . . . . . . . Walls Destroyed . | . . . . . . . . . . . . . . Machines Disabled . | . . . . . . . . . . . . . . Actions | -11 -10 -10 -9 -9 -9 -8 -8 -8 -7 -7 -7 -7 -7 --------- Run | Scr Mat Min Mat Min Exi Min Mat Sto Fac Low Low Zio Dee Total 8351 | 3 178 763 693 675 1150 565 247 1051 343 524 288 1194 677 Wait 382 | . . 7 81 24 61 1 6 160 8 . . 5 29 Move 7146 | 3 138 714 514 618 984 544 173 751 308 454 272 1166 507 Hop 1 | . . . . . 1 . . . . . . . . Pick Up 98 | . 5 11 15 5 27 1 3 9 6 5 2 3 6 Fast Attach 56 | . 2 1 7 2 5 . 6 15 1 3 1 3 10 Attach 42 | . . . 3 . 4 1 2 3 2 4 . . 23 Detach 7 | . . . . . 3 . . 1 . 1 . . 2 Swap 77 | . 5 7 16 3 8 2 9 7 3 3 6 2 6 Drop 111 | . 9 13 17 7 25 . 8 13 4 3 3 5 4 Fire 405 | . 19 10 39 16 30 16 40 90 11 40 4 1 89 Melee 10 | . . . . . . . . . . . . 9 1 Ram . | . . . . . . . . . . . . . . Kick . | . . . . . . . . . . . . . . Crush 3 | . . . 1 . . . . 2 . . . . . Escape Stasis . | . . . . . . . . . . . . . . Rewire 11 | . . . . . . . . . . 11 . . . Trap 2 | . . . . . 2 . . . . . . . . Miscellaneous . | . . . . . . . . . . . . . . Route ------- -11/Scrapyard -10/Materials -10/Mines (discovered 2 exits: *Mat x2) -9/Materials (discovered 3 exits: *Mat x2 / [*Min]) -9/Mines (discovered 4 exits: *Mat x2 / *Exi / *Zio) -9/Exiles -8/Mines (discovered 2 exits: *Mat x2) -8/Materials -8/Storage -7/Factory (discovered 2 exits: *Low x2) -7/Lower Caves -7/Lower Caves -7/Zion (discovered 2 exits: [*Dee] / [*Pro]) -7/Deep Caves History --------- Turn | Location | Event 1 | -11/Scrapyard | Discovered new exit (range 2) 5 | -11/Scrapyard | Entered Materials 82 | -10/Materials | Discovered new exit (range 12) 246 | -10/Materials | Entered Mines 291 | -10/Mines | Assembled infested the area 304 | -10/Mines | Found a hidden stash of uninstalled traps 329 | -10/Mines | Build established: Mutant 551 | -10/Mines | Discovered new exit (range 8) 691 | -10/Mines | Discovered new exit (range 9) 916 | -10/Mines | A weapon hastily lodged in a ceiling crevice suddenly fell to the ground 1398 | -10/Mines | Entered Materials 1398 | -9/Materials | Evolved 2 slots: Utility x2 1767 | -9/Materials | Discovered new exit (range 11) 2343 | -9/Materials | Discovered new exit (range 15) 2453 | -9/Materials | Repaired Med. Armor Plating 2486 | -9/Materials | Repaired Med. Armor Plating 2582 | -9/Materials | Discovered new exit (range 9) 2620 | -9/Materials | Entered Mines 2625 | -9/Mines | Discovered new exit (range 11) 2686 | -9/Mines | Learned location of Zion (-7) 2941 | -9/Mines | Deemed a non-threat by the Exiles lab entrance 2943 | -9/Mines | Discovered new exit (range 5) 3286 | -9/Mines | Found a damaged Exp. Sensor Array with a note attached 3291 | -9/Mines | Found Prototype Device 3291 | -9/Mines | Identified Exp. Sensor Array 3439 | -9/Mines | Received a Rocket Launcher from a helpful Derelict 3497 | -9/Mines | A Derelict revealed a hidden shortcut to a safe place 3579 | -9/Mines | Discovered new exit (range 15) 3584 | -9/Mines | Escorted by a lone wolf Derelict 4094 | -9/Mines | Entered Exiles 4094 | -9/Exiles | Accompanied by 1 ally 4155 | -9/Exiles | Met 8R-AWN 4187 | -9/Exiles | Met EX-HEX 4254 | -9/Exiles | Met EX-BIN 4286 | -9/Exiles | Aligned with FarCom system 4288 | -9/Exiles | Given EX-Vault access code 4349 | -9/Exiles | Opened EX-Vault 4368 | -9/Exiles | Found Deploy-a-Sentry 4371 | -9/Exiles | Found Deploy-a-Sentry 4375 | -9/Exiles | Found Deploy-a-Sentry 4423 | -9/Exiles | Warned to stay clear of 0b10 Research branches 4486 | -9/Exiles | Met EX-DEC 4551 | -9/Exiles | DAS Turret deployed 4554 | -9/Exiles | DAS Turret deployed 4557 | -9/Exiles | DAS Turret deployed 5720 | -9/Exiles | Attacked by the Exiles 5720 | -9/Exiles | Allies destroyed EX-DEC 5740 | -9/Exiles | Allies destroyed EX-HEX 5755 | -9/Exiles | Allies destroyed EX-BIN 5908 | -9/Exiles | Destroyed 8R-AWN 5950 | -9/Exiles | Found Prototype Device 5950 | -9/Exiles | Identified AS-neutralizer No. 17b 5954 | -9/Exiles | Found Prototype Ballistic Gun 5955 | -9/Exiles | Identified 8R-AWN's Boregun 6016 | -9/Exiles | Found 8R-AWN's Boregun 6444 | -9/Exiles | Found Prototype Processor 6523 | -9/Exiles | Discovered new exit (range 14) 6547 | -9/Exiles | Entered Mines 6672 | -8/Mines | Discovered new exit (range 11) 6876 | -8/Mines | Discovered new exit (range 8) 7823 | -8/Mines | Entered Materials 7823 | -8/Materials | Evolved 2 slots: Propulsion x1, Utility x1 8152 | -8/Materials | Identified exit to Storage 8314 | -8/Materials | Entered Storage 8805 | -8/Storage | Repaired Broken Lgt. Neutrino Core 9481 | -8/Storage | Repaired Exp. Heat Sink 9520 | -8/Storage | Repaired Adv. Treads 9681 | -8/Storage | Discovered new exit (range 9) 9958 | -8/Storage | Build established: Scavenger-Mutant 10386 | -8/Storage | Assisted by bots powering up and referring to "LRC-V3" 10460 | -8/Storage | Entered Factory 10460 | -7/Factory | Accompanied by 10 allies 10460 | -7/Factory | Evolved 2 slots: Propulsion x1, Utility x1 10678 | -7/Factory | Build established: Commander-Mutant 10785 | -7/Factory | Garrison activated, responded to threat 10873 | -7/Factory | Identified exit to Lower Caves 11251 | -7/Factory | Entered Lower Caves 11253 | -7/Lower Caves | Attracted the attention of an 0b10 checkpoint 11265 | -7/Lower Caves | Attracted the attention of an 0b10 outpost 11338 | -7/Lower Caves | Lost 3 parts (1p1n1u) 11371 | -7/Lower Caves | Learned 4 Factory zone layouts 11842 | -7/Lower Caves | Build established: Scavenger-Mutant 12109 | -7/Lower Caves | Identified exit to Lower Caves 12154 | -7/Lower Caves | Build established: Mutant 12359 | -7/Lower Caves | Learned location of Extension (-5) 12506 | -7/Lower Caves | Entered another Lower Caves area 12556 | -7/Lower Caves | Encountered a Warlord checkpoint 13058 | -7/Lower Caves | Discovered new exit (range 13) 13168 | -7/Lower Caves | Identified exit to Zion 13194 | -7/Lower Caves | Entered Zion 13318 | -7/Zion | System corruption cleaned by Quarantine Array 13486 | -7/Zion | Found GAL Module 13661 | -7/Zion | Discovered new exit (range 16) 14142 | -7/Zion | Learned location of Armory (-3) 14626 | -7/Zion | Build established: Derelict-Mutant 14681 | -7/Zion | Learned Factory garrison access intel 14857 | -7/Zion | Learned location of Warlord (-4) 16082 | -7/Zion | Discovered new exit (range 4) 16085 | -7/Zion | Saw the warning signs outside the Deep Caves entrance 16098 | -7/Zion | Entered Deep Caves 16625 | -7/Deep Caves | Attacked by Z-Imprinter 16712 | -7/Deep Caves | Destroyed Z-Imprinter 16740 | -7/Deep Caves | Lost 15 parts (1p6n5u3w) 16744 | -7/Deep Caves | Found Prototype Device 16744 | -7/Deep Caves | Identified Zio. Metafield Generator 16786 | -7/Deep Caves | Found Prototype Protection 16886 | -7/Deep Caves | Z-Facility disabled 17019 | -7/Deep Caves | Build established: Scavenger-Mutant 17305 | -7/Deep Caves | Spotted as-40277 17307 | -7/Deep Caves | Core integrity fell below 50% 17339 | -7/Deep Caves | Core integrity fell below 20% 17361 | -7/Deep Caves | Exposed GOLEM chamber 17381 | -7/Deep Caves | Destroyed as-40277 17407 | -7/Deep Caves | Lost 15 parts (1p4n4u6w) 17494 | -7/Deep Caves | Triggered Deep Caves wall 17507 | -7/Deep Caves | Spotted AS-18033 17512 | -7/Deep Caves | Spotted AS-07693 17527 | -7/Deep Caves | Destroyed by as-38654 with Assembled Shotgun Last Messages --------------- 17501_ as-34928 powers down. 17501_ as-17478 powers down. 17501_ as-53008 powers down. 17501_ as-48981 powers down. 17501_ as-57773 powers down. 17501_ as-97877 powers down. 17501_ as-13568 powers down. 17505_ as-74456 Prototype Leg integration complete. 17506_ as-28656 powers down. 17506_ as-62002 powers down. 17506_ as-50877 powers down. 17506_ as-74456 GOLEM Unit beginning Prototype Reactor integration. 17511_ as-52966 powers down. 17511_ as-33690 Prototype Leg integration complete. 17512_ as-33690 GOLEM Unit beginning Prototype Reactor integration. 17516_ as-55148 released from Mobile Assembly Unit. 17519_ Slug penetrates as-01016. 17521_ as-55148 powers down. 17526_ as-38654 released from Mobile Assembly Unit. 17526_ Sneak attack on AS-18033. Map ----- +----------------------------------------------------+ | ?????????????????????????????????????? | | ?????????????????????????????????????? | | ?????????????????????????????????????? | | ?????????????????????????????????????? | | ?????????????????????????????????????? | | ?????????????????????????????????????? | | ?????????????????????????????????????? | | ?????????????????????????????????????? | | ?????????????????????????????????????? | | ?????????????????????????????????????? | | ??????????? ?????????????????????? | | ?????????" ???????????????????? | | ?????????" l ????????????????? | | ????????""s #??????????????# | | ??????### | ##?????????????? | | ??""""" # ????????????? | | ??" aAaa ?????? ???? | | ??" a a * ?????? # | | ??"aa a a s GG ?????? | | ??" a a ag * #?????????? | | ??"aaa a a = ##????????? | | ??" a a aa a g #????????? | | ????aaaaaa a =* #????????? | | ??????"aaa a * #????????? | | ????????#aaa A= ==l * #????????? | | ??????#"""a =@ #????????? | | ??????#G G a #????????? | | ??????#G l= #????????? | | ??????#GG a = s= = ###??????? | | ??????#G = "#??????? | | ??????### #???????? | | ????????" #???????? | | ????????" ######### | | ????????" / | | ????????""" | | ????????" / M | | ????????"" ######### | | ????????" "#??????? | | ????????"" ###??????? | | ????????" # #????????? | | ????????" ### ## ## ##????????? | | ????????""" ####?# ## ####?????????? | | ?????????" ?????#### #????????????? | | ?????????#####?????????#?????????????? | | | | | | | | | | | | | +----------------------------------------------------+ Best States ------------- Heat Dissipation 74 Energy Generation 19 Energy Capacity 310 Matter Stores 300 Matter Capacity 300 Sight Range 16 Terrain Scan Density 10 Corruption Containment 12 Armor Coverage 800 Resistance: KI 30 Weapon Cycling 25 Evasion (%) 55 Targeting Accuracy 12 Core Analysis 6 Armor Integrity Analysis 40 Recoil Reduction 4 Offensive Hacking 20 Item Schematics ----------------- Fission Core | -8/Storage | Hacked Adv. Sensor Array | -7/Zion | Archive Hvy. Ion Cannon | -7/Zion | Archive Adv. System Restoration Module | -7/Zion | Archive Kinecellerator | -7/Zion | Archive Focal Shield | -7/Zion | Archive Plasma Cannon | -7/Zion | Archive Thermic Laser | -7/Zion | Archive Imp. Cooling System | -7/Zion | Archive Imp. System Restoration Module | -7/Zion | Archive Hvy. Shock Bomb Launcher | -7/Zion | Archive System Restoration Module | -7/Zion | Archive Hvy. Missile Launcher | -7/Zion | Archive Hvy. Machine Gun | -7/Zion | Archive Robot Schematics ------------------ A-02 Transporter | -7/Zion | Archive L-41 Fighter | -7/Zion | Archive G-47 Trooper | -7/Zion | Archive H-88 Terminator | -7/Zion | Archive Fabricated ------------ Nothing Alien Tech Used ----------------- None Achievements -------------- None Challenges ------------ None Game ------ Seed XenonSpectralWand Manual? 0 Play Time 01:12:53 Cumulative 328.9 hours Start 2022.05.03 @ 19:09:21 End 2022.05.03 @ 21:23:48 Sessions 3 Manual Loads 0 Difficulty Rogue Special Mode None Game No. 361 Rogue 361 Adventurer 0 Explorer 0 Win Type - Total 28 Types 17/3/2/1/2/0/3/0/0 Lore% 86 Gallery% 84 Achievement% 80 Wizard Run 0 Options --------- ASCII 0 Keyboard 0 Movement Arrows Keybinds 0 Fullscreen 2 Font 18/SmallcapsGlow Map View 76x50 Tactical HUD 1 Map Filters NONE Filters NONE Steam 1 RUN: 68bbc209-a90d-47fe-80d4-23e2d0d2927a